bitfinex-derivatives/quotes_ETHF0:USTF0_20250308
["timestamp","ask_amount","ask_price","bid_price","bid_amount"]
[1741454894742,0.72375,2211.4,2211.2,0.00678533]
[1741454895138,3.2078,2211.5,2211.2,0.00678533]
[1741454895335,3.93152,2211.5,2211.2,0.00678533]
[1741454895541,3.93152,2211.5,2211.2,0.73055533]
[1741454895845,3.93152,2211.5,2211.2,0.00678533]
[1741454896037,3.93152,2211.5,2211.2,0.73055533]
[1741454896344,3.2078,2211.6,2211.3,0.72373]
[1741454896644,2.4699,2211.7,2211.6,0.72366]
[1741454898040,0.0599,2211.7,2211.6,0.72366]
[1741454899139,0.0599,2211.7,2211.2,3.21458533]
[1741454899442,0.0599,2211.7,2211.4,0.72372]
[1741454899645,0.0599,2211.7,2211.5,0.72369]
[1741454899845,0.0599,2211.7,2211.4,0.72371]
[1741454900044,0.0599,2211.7,2211.2,3.21458533]
[1741454900246,0.0599,2211.7,2211.3,0.72375]
[1741454900442,0.0599,2211.7,2211.2,3.21458533]
[1741454900639,0.0599,2211.7,2211.6,0.72366]
[1741454901638,3.2078,2211.9,2211.6,0.72366]
[1741454901845,3.2078,2211.9,2211.7,0.72362]
[1741454902445,3.2078,2211.9,2211.7,1.06318037]
[1741454902839,3.2078,2211.9,2211.6,0.72364]
[1741454903946,3.2078,2211.9,2211.5,0.72369]
[1741454903947,3.93137,2211.9,2211.5,0.72369]
[1741454904244,3.93137,2211.9,2211.4,0.72371]
[1741454904443,0.7236,2211.8,2211.3,0.72373]
[1741454904642,0.7236,2211.8,2211.2,3.21458533]
[1741454904948,0.1798,2211.7,2211.3,0.72374]
[1741454905644,0.1798,2211.7,2211.6,0.72366]
[1741454906945,0.1798,2211.7,2211.2,4.85980387]
[1741454907250,0.1798,2211.7,2211.6,0.72366]
[1741454907546,0.1798,2211.7,2211.4,0.72372]
[1741454907749,0.1798,2211.7,2211.4,0.72369]
[1741454908344,0.1798,2211.7,2211.2,3.54750387]
[1741454908646,0.1798,2211.7,2211.3,0.72373]
[1741454909844,0.1798,2211.7,2211.4,0.72372]
[1741454910351,0.72372,2211.4,2211.2,0.00678533]
[1741454910650,3.2078,2211.5,2211.2,0.00678533]
[1741454910845,0.72373,2211.4,2211.2,0.00678533]
[1741454911048,3.93151,2211.5,2211.2,0.00678533]
[1741454911246,0.72373,2211.4,2211.2,0.00678533]
[1741454912546,3.2078,2211.5,2211.2,0.00678533]
[1741454912853,0.72373,2211.4,2211.2,0.00678533]
[1741454913349,3.2078,2211.5,2211.2,0.00678533]
[1741454913551,5.6158,2211.5,2211.2,0.00678533]
[1741454913755,0.1798,2211.7,2211.2,0.00678533]
[1741454913947,0.1798,2211.7,2211.3,0.72374]
[1741454914346,0.72373,2211.4,2211.2,0.00678533]
[1741454914649,0.72375,2211.3,2211.2,0.00678533]
[1741454915047,0.72388,2211.0,2210.5,3.2078]
[1741454915250,3.13188,2211.0,2210.5,3.2078]
[1741454915456,0.72389,2210.9,2210.4,3.27393]
[1741454915659,2.408,2211.0,2210.4,2.5499]
[1741454915952,2.408,2211.0,2210.5,3.2078]
[1741454916159,0.00678533,2210.9,2210.6,0.72396]
[1741454916861,0.00678533,2210.9,2210.6,0.72397]
[1741454917060,0.00678533,2210.9,2210.8,0.72392]
[1741454917357,0.00678533,2210.9,2210.7,0.72392]
[1741454917547,0.00678533,2210.9,2210.5,3.56019934]
[1741454917748,2.408,2211.3,2210.8,3.2078]
[1741454917954,8.0331,2211.6,2210.8,3.2078]
[1741454918253,8.0331,2211.6,2211.2,0.72377]
[1741454918547,0.72374,2211.4,2210.9,0.72386]
[1741454918755,0.72371,2211.5,2210.9,0.72386]
[1741454919054,3.2078,2211.3,2210.9,0.72388]
[1741454919558,3.2078,2211.3,2210.9,0.72385]
[1741454919946,3.2078,2211.3,2210.8,3.2078]
[1741454920258,3.2078,2211.3,2210.9,0.72386]
[1741454920457,8.75676,2211.6,2211.1,0.72381]
[1741454920651,8.0331,2211.6,2211.0,0.72384]
[1741454920859,0.72371,2211.5,2211.0,0.72384]
[1741454921157,0.72371,2211.5,2210.9,0.72387]
[1741454921662,0.72371,2211.5,2211.0,0.72383]
[1741454921848,0.72372,2211.4,2210.9,0.72387]
[1741454922252,0.72381,2211.2,2210.6,0.72398]
[1741454922449,3.13181,2211.2,2210.6,0.72395]
[1741454922652,3.13181,2211.2,2210.7,0.72394]
[1741454922858,0.72383,2211.1,2210.6,0.72397]
[1741454923055,3.1318,2211.2,2210.7,0.72394]
[1741454923362,2.408,2211.2,2210.5,3.56019934]
[1741454923663,0.72382,2211.1,2210.6,0.72396]
[1741454923862,3.1318,2211.2,2210.7,0.72392]
[1741454924157,2.408,2211.2,2210.8,0.7239]
[1741454924362,0.2756,2211.1,2210.8,0.7239]
[1741454924556,0.2756,2211.1,2210.6,0.72396]
[1741454924752,0.99945,2211.1,2210.6,0.72396]
[1741454925661,0.72387,2211.0,2210.5,4.28419934]
[1741454927361,3.2078,2210.8,2210.5,0.00678533]
[1741454927558,2.408,2210.7,2209.9,5.516]
[1741454927860,3.2078,2210.2,2209.9,2.531]
[1741454928866,0.00678533,2210.3,2210.2,0.72411]
[1741454929249,0.00678533,2210.3,2209.9,5.7388]
[1741454929451,0.00678533,2210.3,2210.0,0.72417]
[1741454929956,0.00678533,2210.3,2209.9,6.46299]
[1741454930166,0.12298533,2210.3,2209.9,6.463]
[1741454930463,0.12298533,2210.3,2209.9,5.7388]
[1741454930663,4.05487533,2210.3,2209.9,5.7388]
[1741454931364,5.73778533,2210.3,2210.0,0.72416]
[1741454931661,5.73778533,2210.3,2209.9,3.2078]
[1741454931856,6.46187533,2210.3,2209.9,3.2078]
[1741454932465,5.73778533,2210.3,2209.9,3.2078]
[1741454932852,0.72415,2210.1,2209.9,3.2078]
[1741454933058,5.73778533,2210.3,2209.9,3.2078]
[1741454933355,0.72413,2210.2,2209.9,3.2078]
[1741454934861,6.46188533,2210.3,2209.9,3.2078]
[1741454935459,5.73778533,2210.3,2209.9,3.93199]
[1741454936165,0.12298533,2210.3,2210.2,0.72411]
[1741454936471,3.2078,2211.2,2210.3,0.72408]
[1741454936669,2.407,2211.3,2210.9,0.72387]
[1741454937171,6.33857,2211.3,2210.7,3.2078]
[1741454937460,5.6148,2211.3,2210.7,3.2078]
[1741454937671,3.2078,2211.0,2210.7,3.2078]
[1741454937861,0.72392,2210.8,2210.7,3.2078]
[1741454938060,3.2078,2211.0,2210.3,1.2743]
[1741454938061,0.72397,2210.7,2210.3,1.2743]
[1741454938261,0.72399,2210.6,2210.3,1.2743]
[1741454938464,3.93187,2210.4,2210.0,1.2594]
[1741454938661,3.2078,2210.4,2210.0,1.2594]
[1741454938862,2.407,2210.5,2210.1,0.72414]
[1741454939165,2.407,2210.5,2210.1,0.72413]
[1741454939569,2.407,2210.5,2210.0,4.4672]
[1741454939868,2.407,2210.5,2210.0,5.19135]
[1741454940067,2.4557,2210.5,2210.1,0.72414]
[1741454940271,2.4557,2210.5,2210.0,5.19136]
[1741454940568,2.4557,2210.5,2210.1,0.72414]
[1741454940771,0.72406,2210.4,2210.0,4.4672]
[1741454940965,2.4557,2210.5,2210.0,5.19136]
[1741454941563,3.17973,2210.5,2210.0,1.2594]
[1741454941972,3.2078,2210.3,2210.0,1.2594]
[1741454942168,3.2078,2210.3,2209.8,12.55374771]
[1741454942368,3.2078,2210.3,2209.9,0.7242]
[1741454942567,3.2078,2210.3,2209.8,12.55374771]
[1741454942874,3.2078,2210.3,2209.8,13.27796771]
[1741454943470,3.93189,2210.3,2209.8,13.27796771]
[1741454943968,3.9319,2210.3,2209.8,12.55374771]
[1741454944473,0.72411,2210.2,2209.8,12.55374771]
[1741454944672,5.6138,2210.3,2209.8,12.55374771]
[1741454944972,6.33789,2210.3,2209.8,13.27797771]
[1741454945561,2.406,2210.3,2209.8,12.55374771]
[1741454945769,2.406,2210.3,2210.0,0.72415]
[1741454945967,2.406,2210.3,2210.1,0.72414]
[1741454946272,2.406,2210.4,2210.0,0.72415]
[1741454946477,3.2078,2210.4,2209.8,12.55374771]
[1741454946672,0.0487,2210.5,2209.8,12.55374771]
[1741454946875,0.0487,2210.5,2210.1,0.72413]
[1741454947481,0.0487,2210.5,2209.8,12.55374771]
[1741454947669,0.77273,2210.5,2209.8,12.55374771]
[1741454947870,0.77273,2210.5,2209.9,0.72418]
[1741454948174,0.0487,2210.5,2210.0,0.72418]
[1741454948568,0.0487,2210.5,2209.8,12.55374771]
[1741454948766,0.0487,2210.5,2210.0,0.72416]
[1741454948969,0.77272,2210.5,2210.0,0.72416]
[1741454949178,0.0487,2210.5,2209.8,12.55374771]
[1741454949379,0.0487,2210.5,2210.0,3.2078]
[1741454949681,0.0487,2210.5,2210.1,0.72415]
[1741454950076,0.0487,2210.5,2210.2,0.7241]
[1741454950966,3.13549,2210.6,2210.1,0.72413]
[1741454951377,0.72404,2210.5,2210.0,3.93195]
[1741454952675,3.1355,2210.6,2210.0,3.2078]
[1741454952980,3.1355,2210.6,2210.1,0.72412]
[1741454954178,0.0055,2210.6,2210.5,0.68252]
[1741454954771,3.2078,2211.1,2210.8,0.7239]
[1741454955576,0.72377,2211.3,2210.9,0.72387]
[1741454955577,2.405,2211.3,2210.9,0.72387]
[1741454955778,3.12878,2211.3,2210.8,0.7239]
[1741454956080,3.12878,2211.3,2210.8,0.72392]
[1741454956281,3.93159,2211.2,2210.7,0.72393]
[1741454956479,0.72383,2211.1,2210.4,2.5711]
[1741454956674,0.72384,2211.1,2210.5,0.72399]
[1741454956871,0.72382,2211.1,2210.5,0.72399]
[1741454957075,3.2078,2211.2,2210.5,0.72399]
[1741454957281,3.93171,2210.9,2210.4,2.5711]
[1741454958178,0.72392,2210.8,2210.4,2.5711]
[1741454958382,3.2078,2210.6,2210.1,3.7196]
[1741454958678,3.2078,2210.3,2209.9,2.6116]
[1741454959675,3.2078,2210.3,2209.8,12.55374771]
[1741454959880,0.72414,2210.2,2209.8,12.55374771]
[1741454960880,4.4334,2210.3,2209.8,13.27798771]
[1741454961086,3.2078,2210.3,2209.9,0.72419]
[1741454961285,0.72412,2210.2,2209.8,12.55374771]
[1741454961980,0.72415,2210.1,2209.8,12.55374771]
[1741454962181,3.93189,2210.3,2209.8,12.55374771]
[1741454962386,3.2078,2210.3,2209.8,12.55374771]
[1741454962685,4.904,2210.4,2210.0,0.72416]
[1741454962888,3.2078,2210.3,2209.8,15.76154771]
[1741454963188,3.9319,2210.3,2209.8,12.55374771]
[1741454963388,3.2078,2210.3,2209.8,12.55374771]
[1741454963686,3.93189,2210.3,2209.8,12.55374771]
[1741454963885,3.93189,2210.3,2209.8,13.27798771]
[1741454964087,3.93189,2210.3,2209.8,12.55374771]
[1741454964088,3.2078,2210.3,2209.8,12.55374771]
[1741454964288,0.72412,2210.2,2209.8,12.55374771]
[1741454964692,2.404,2210.1,2209.8,12.55374771]
[1741454964993,3.2078,2210.0,2209.8,12.55374771]
[1741454965795,0.72421,2209.9,2209.8,0.00678533]
[1741454965995,0.72429,2209.7,2209.2,0.72443]
[1741454966290,5.6118,2209.7,2209.1,2.5336]
[1741454966490,0.72443,2209.3,2209.1,1.2938]
[1741454966691,0.72453,2209.0,2208.6,1.2398]
[1741454966896,0.72459,2208.8,2208.3,5.61292446]
[1741454967092,3.2078,2208.9,2208.6,0.00678533]
[1741454967294,2.41078533,2209.0,2208.7,0.72458]
[1741454967496,2.41078533,2209.0,2208.6,0.73140533]
[1741454968102,3.2078,2208.9,2208.6,0.00678533]
[1741454968594,0.72461,2208.7,2208.6,0.00678533]
[1741454969999,0.72474,2208.3,2208.0,1.3333]
[1741454970203,3.93257,2208.3,2208.0,1.3333]
[1741454970504,0.72479,2208.2,2207.6,0.72494]
[1741454971004,3.2078,2208.3,2207.5,4.12701171]
[1741454971204,0.72479,2208.2,2207.7,0.00678533]
[1741454971701,4.904,2208.2,2207.7,0.00678533]
[1741454971899,3.2078,2207.8,2207.7,0.00678533]
[1741454972204,5.6118,2207.8,2207.7,0.00678533]
[1741454972397,2.404,2207.8,2207.7,0.00678533]
[1741454972596,6.3367,2207.8,2207.7,0.00678533]
[1741454973398,5.6118,2207.8,2207.1,2.5893]
[1741454973693,0.72497,2207.6,2207.1,2.5893]
[1741454973894,5.6118,2207.8,2207.1,2.93250929]
[1741454973895,0.72496,2207.7,2207.1,2.93250929]
[1741454974202,0.72496,2207.7,2207.1,3.65761929]
[1741454974403,0.72499,2207.6,2207.1,2.93250929]
[1741454974600,0.73177533,2207.6,2207.2,0.00678533]
[1741454976007,0.00678533,2207.6,2207.5,0.725]
[1741454976202,4.904,2208.0,2207.4,0.72502]
[1741454976503,4.904,2208.0,2207.3,3.2078]
[1741454976707,5.6128,2208.1,2207.7,0.72493]
[1741454977009,5.6128,2208.1,2207.6,0.72495]
[1741454977205,0.00678533,2207.9,2207.7,1.2539]
[1741454977408,0.00678533,2207.9,2207.8,0.7249]
[1741454977609,0.00678533,2207.9,2207.8,2.0586]
[1741454978212,0.00678533,2207.9,2207.8,1.3337]
[1741454978710,0.00678533,2207.9,2207.8,2.0586]
[1741454979003,0.00678533,2207.9,2207.8,1.3337]
[1741454979209,0.00678533,2207.9,2207.8,2.0586]
[1741454979610,0.00678533,2207.9,2207.8,1.3337]
[1741454980110,0.00678533,2207.9,2207.8,2.0586]
[1741454981111,2.405,2208.7,2208.1,0.72479]
[1741454981311,3.2078,2208.4,2207.8,1.3337]
[1741454981513,3.93252,2208.4,2207.9,0.72486]
[1741454981913,3.2078,2208.4,2207.8,1.3337]
[1741454982111,3.2078,2208.4,2207.9,3.2078]
[1741454982112,0.00678533,2208.4,2207.9,3.2078]
[1741454982512,0.00678533,2208.4,2208.2,0.72477]
[1741454983218,0.00678533,2208.4,2207.9,3.2078]
[1741454983515,0.00678533,2208.4,2208.2,0.72474]
[1741454984516,0.00678533,2208.4,2208.3,0.72474]
[1741454984908,0.00678533,2208.4,2208.2,0.72475]
[1741454985308,0.00678533,2208.4,2207.9,3.2078]
[1741454985509,0.00678533,2208.4,2208.3,0.72474]
[1741454985909,0.00678533,2208.4,2207.9,3.2078]
[1741454986117,0.00678533,2208.4,2208.1,0.72477]
[1741454987722,0.00678533,2208.4,2207.9,3.2078]
[1741454987914,0.00678533,2208.4,2208.2,0.72476]
[1741454989621,0.00678533,2208.4,2208.2,0.72474]
[1741454990526,0.00678533,2208.4,2208.1,0.72477]
[1741454990737,0.00678533,2208.4,2208.2,0.72476]
[1741454992727,0.00678533,2208.4,2208.3,0.72474]
[1741454992914,0.00678533,2208.4,2208.2,0.72475]
[1741454993627,0.00678533,2208.4,2207.9,3.2078]
[1741454993827,0.00678533,2208.4,2208.2,0.72476]
[1741454994228,0.00678533,2208.4,2207.9,3.2078]
[1741454994426,0.00678533,2208.4,2208.1,0.72479]
[1741454994929,0.00678533,2208.4,2208.2,0.72475]
[1741454995325,0.00678533,2208.4,2207.9,3.2078]
[1741454995522,0.00678533,2208.4,2208.2,0.72475]
[1741454996318,0.00678533,2208.4,2208.1,0.72478]
[1741454996923,0.00678533,2208.4,2208.2,0.72477]
[1741454998020,0.00678533,2208.4,2207.9,3.2078]
[1741454998239,0.00678533,2208.4,2208.1,0.72478]
[1741454998530,0.00678533,2208.4,2207.9,3.2078]
[1741454998730,0.00678533,2208.4,2208.1,0.72479]
[1741454998934,0.00678533,2208.4,2208.2,0.72477]
[1741454999525,0.00678533,2208.4,2208.1,0.72479]
[1741454999929,0.00678533,2208.4,2207.9,3.2078]
[1741455000123,0.72488,2207.9,2207.4,0.72501]
[1741455000328,0.72488,2207.9,2207.3,0.72504]
[1741455000329,3.2078,2207.7,2207.3,0.72504]
[1741455000727,2.402,2207.9,2207.2,2.50608533]
[1741455001127,2.402,2207.9,2207.7,0.72491]
[1741455001327,2.402,2207.9,2207.3,3.2078]
[1741455001534,3.2078,2208.1,2207.3,3.2078]
[1741455001938,3.2078,2208.1,2207.7,0.72493]
[1741455002135,3.2078,2208.1,2207.3,3.2078]
[1741455002438,2.402,2208.2,2208.1,0.7248]
[1741455002737,3.2078,2208.5,2208.2,0.72476]
[1741455003036,3.2078,2208.5,2208.1,0.72478]
[1741455003830,3.2078,2208.5,2207.8,1.2856]
[1741455004041,5.7149,2209.0,2208.2,3.2078]
[1741455004238,0.72455,2208.9,2208.3,1.95763]
[1741455004542,3.2078,2208.8,2208.3,1.95763]
[1741455004929,4.9091,2209.0,2208.1,0.72479]
[1741455004930,3.2078,2208.5,2208.1,0.72479]
[1741455005235,4.904,2208.4,2208.1,0.00678533]
[1741455005745,4.904,2208.4,2208.3,0.72474]
[1741455007037,3.2078,2208.8,2208.2,1.343]
[1741455007238,3.2078,2208.5,2208.2,1.343]
[1741455007540,3.2078,2208.5,2208.2,2.06777]
[1741455009743,3.2078,2208.5,2208.2,1.343]
[1741455010831,3.93249,2208.5,2208.1,0.00678533]
[1741455011043,5.6088,2208.5,2208.1,0.00678533]
[1741455011445,3.2078,2208.5,2208.1,0.00678533]
[1741455011631,3.2078,2208.5,2208.4,0.7247]
[1741455012143,3.2078,2209.4,2208.4,9.6088]
[1741455012339,3.2078,2209.4,2209.2,0.72443]
[1741455012637,3.2078,2209.4,2208.9,0.34061245]
[1741455012840,3.2078,2209.4,2208.9,0.72454]
[1741455013030,3.2078,2209.4,2208.8,1.2829]
[1741455013338,3.93218,2209.4,2208.8,1.63203994]
[1741455013539,3.2078,2209.4,2208.9,0.72454]
[1741455013838,3.2078,2209.4,2209.3,0.72441]
[1741455014342,3.2078,2209.4,2209.1,0.72446]
[1741455014549,3.2078,2209.4,2208.8,4.03203994]
[1741455014550,3.2078,2209.4,2208.8,1.2829]
[1741455014738,3.2078,2209.1,2208.7,4.27870879]
[1741455014938,5.6078,2209.1,2208.7,3.55411879]
[1741455015139,5.6078,2209.1,2208.7,4.27870879]
[1741455015340,5.6078,2209.1,2208.7,4.27872879]
[1741455015640,5.6078,2209.1,2208.7,3.21458533]
[1741455015847,2.4,2209.1,2208.8,0.72456]
[1741455016346,5.6078,2209.1,2208.9,0.72454]
[1741455016843,5.6078,2209.1,2208.7,3.21458533]
[1741455017044,2.4,2209.1,2208.8,0.72457]
[1741455017249,2.4,2209.1,2208.8,0.72455]
[1741455017648,2.4,2209.1,2208.7,3.555337]
[1741455017843,2.4,2209.1,2208.7,3.21458533]
[1741455018441,2.4,2209.1,2208.7,3.5598727]
[1741455018641,2.4,2209.1,2208.8,0.72456]
[1741455019047,2.4,2209.1,2208.7,3.5598727]
[1741455019240,2.4,2209.1,2208.8,0.72456]
[1741455020137,2.4,2209.1,2208.7,3.21458533]
[1741455020754,2.4,2209.1,2208.7,3.93917533]
[1741455020946,2.4,2209.1,2208.8,0.72455]
[1741455021547,2.4,2209.1,2208.9,0.72453]
[1741455022048,3.2078,2209.4,2209.0,3.2078]
[1741455022252,4.904,2210.0,2208.7,2.75733547]
[1741455022253,1.318,2210.0,2209.3,3.2078]
[1741455022458,3.2078,2210.2,2209.9,0.72421]
[1741455022749,3.2078,2210.2,2209.4,1.3379]
[1741455022949,0.72419,2210.0,2209.8,0.00678533]
[1741455023253,3.93201,2209.9,2209.8,0.00678533]
[1741455023454,3.2078,2209.9,2209.8,0.00678533]
[1741455023951,7.303,2210.0,2209.8,0.00678533]
[1741455024751,3.2078,2210.2,2209.9,0.7242]
[1741455025254,3.2078,2210.2,2209.9,3.26099]
[1741455025449,3.2078,2210.2,2209.9,2.5368]
[1741455026653,3.2078,2210.2,2209.9,1.2656]
[1741455027354,0.34476548,2211.1,2209.9,1.2656]
[1741455027355,4.904,2210.8,2209.9,4.4734]
[1741455027652,0.72392,2210.8,2210.2,0.7241]
[1741455028052,0.72392,2210.8,2209.6,2.398]
[1741455028053,3.2078,2209.8,2208.7,0.61666319]
[1741455028244,3.2078,2208.5,2207.3,3.03820644]
[1741455028549,3.2078,2208.5,2207.3,2.05225058]
[1741455028550,3.2078,2207.5,2207.3,2.05225058]
[1741455028754,3.2078,2207.5,2207.4,2.1035836]
[1741455028953,3.2078,2208.3,2207.3,9.26005058]
[1741455029152,3.2078,2208.8,2208.5,0.72465]
[1741455029450,5.6058,2209.2,2208.7,3.2078]
[1741455029654,5.6058,2209.2,2208.3,2.547]
[1741455029655,3.21458533,2208.9,2208.3,2.547]
[1741455029857,0.00678533,2208.9,2208.5,0.72467]
[1741455030049,0.00678533,2208.9,2208.4,0.00678533]
[1741455030450,0.00678533,2208.9,2208.5,0.72466]
[1741455031548,0.00678533,2208.9,2208.4,2.94998533]
[1741455031849,0.00678533,2208.9,2208.4,3.67468533]
[1741455032245,0.00678533,2208.9,2208.4,2.94998533]
[1741455032446,0.00678533,2208.9,2208.5,0.72465]
[1741455033853,0.00678533,2208.9,2208.6,3.2078]
[1741455034353,2.397,2210.2,2209.5,0.72434]
[1741455034553,2.397,2210.2,2209.1,6.32927]
[1741455034758,3.2078,2209.5,2208.8,1.2243]
[1741455035057,5.6048,2209.5,2208.8,1.2243]
[1741455035356,5.6048,2210.0,2209.4,3.2078]
[1741455035551,5.6048,2210.0,2209.5,1.2518]
[1741455035859,3.2078,2209.9,2209.5,1.2518]
[1741455036054,2.397,2210.0,2209.5,1.2518]
[1741455036250,3.2078,2209.9,2209.5,1.2518]
[1741455036549,3.2078,2209.7,2208.9,0.73130533]
[1741455036858,3.2078,2209.7,2209.0,1.2518]
[1741455037050,3.2078,2209.7,2209.0,1.9763]
[1741455037756,3.2078,2209.7,2209.0,2.32848319]
[1741455037957,3.2078,2209.7,2209.1,3.2078]
[1741455038661,4.904,2209.9,2209.4,3.2078]
[1741455038857,6.1888,2210.4,2209.7,3.2078]
[1741455038858,2.397,2210.3,2209.7,3.2078]
[1741455039058,2.397,2210.3,2209.7,4.5248]
[1741455039255,1.312,2210.2,2209.7,4.5248]
[1741455039461,1.2865,2210.1,2209.7,3.2078]
[1741455039761,1.2865,2210.1,2209.3,4.5248]
[1741455039762,4.4943,2210.1,2209.3,4.5248]
[1741455040756,3.6835,2210.1,2209.3,4.5248]
[1741455041064,3.6835,2210.1,2209.5,0.72433]
[1741455041257,3.6835,2210.1,2209.3,4.5248]
[1741455041258,3.2078,2210.0,2209.4,0.72436]
[1741455041462,3.2078,2210.0,2209.6,0.72431]
[1741455041663,3.2078,2210.0,2209.5,0.72434]
[1741455041860,3.2078,2210.0,2209.4,0.72437]
[1741455042257,3.2078,2210.0,2209.3,5.24919]
[1741455042561,3.2078,2210.0,2209.5,0.72434]
[1741455044463,3.6835,2210.1,2209.6,3.2078]
[1741455045057,3.2078,2210.0,2209.3,4.5248]
[1741455045259,3.6835,2210.1,2209.5,0.72434]
[1741455045459,1.2865,2210.1,2209.7,3.2078]
[1741455045767,1.2865,2210.1,2209.7,3.93206]
[1741455047268,1.2865,2210.1,2209.7,3.2078]
[1741455047568,1.2865,2210.1,2209.7,3.93206]
[1741455047966,1.2865,2210.1,2209.7,3.2078]
[1741455048874,3.2078,2210.0,2209.7,3.2078]
[1741455049163,3.2078,2210.0,2209.3,4.5248]
[1741455049469,3.2078,2210.0,2209.0,0.35218319]
[1741455049470,3.2078,2209.6,2209.0,0.35218319]
[1741455049663,5.7461,2209.5,2209.4,1.1315]
[1741455049863,2.5383,2209.5,2209.4,2.9419]
[1741455050772,2.5383,2209.5,2208.6,2.93647484]
[1741455050773,12.17120459,2209.5,2208.6,1.3338]
[1741455050967,3.2078,2209.0,2208.2,3.93255]
[1741455051272,3.2078,2208.7,2207.9,3.2078]
[1741455051460,7.3,2208.9,2207.9,3.93265]
[1741455051461,3.2078,2208.4,2207.9,3.93265]
[1741455051658,3.2078,2208.4,2207.9,3.2078]
[1741455052164,0.00678533,2208.4,2208.0,0.72483]
[1741455052567,0.00678533,2208.4,2207.9,3.21458533]
[1741455052763,3.2078,2209.0,2208.2,3.2078]
[1741455053169,3.2078,2209.0,2208.4,0.72468]
[1741455053472,3.2078,2209.0,2208.6,0.72464]
[1741455053663,3.2078,2209.0,2208.7,0.72459]
[1741455053867,3.2078,2209.0,2208.6,0.00678533]
[1741455054173,9.4212,2209.6,2208.6,0.00678533]
[1741455054373,3.7054,2209.6,2209.0,0.72448]
[1741455055074,2.396,2209.6,2209.2,0.72443]
[1741455055371,2.396,2209.6,2209.0,0.72448]
[1741455055764,2.396,2209.6,2209.1,0.72447]
[1741455055970,1.2241,2209.8,2209.2,0.72443]
[1741455056163,3.6201,2209.8,2209.2,0.72443]
[1741455056364,3.6201,2209.8,2209.1,3.93227]
[1741455056767,3.2078,2209.7,2209.1,3.2078]
[1741455056961,3.2078,2209.7,2209.0,0.7245]
[1741455057468,3.2078,2209.7,2208.9,1.99893]
[1741455057672,3.2078,2209.7,2208.9,1.2744]
[1741455057974,3.2078,2209.7,2209.0,0.72451]
[1741455058279,3.2078,2209.7,2209.0,0.72449]
[1741455058468,3.2078,2209.7,2208.9,1.2744]
[1741455058670,3.2078,2209.7,2209.0,0.72449]
[1741455059671,3.2078,2209.7,2208.9,1.2744]
[1741455059870,3.2078,2209.4,2208.9,1.2744]
[1741455060071,3.6201,2209.8,2208.9,1.2744]
[1741455060072,3.2078,2209.3,2208.9,1.2744]
[1741455060268,5.6038,2209.3,2208.8,3.2078]
[1741455060472,1.3037,2209.2,2208.6,0.00678533]
[1741455060673,6.2077,2209.2,2208.6,0.00678533]
[1741455060977,3.2078,2209.0,2208.6,0.00678533]
[1741455061185,2.396,2208.9,2208.6,0.00678533]
[1741455061372,3.2078,2208.7,2208.6,0.00678533]
[1741455061572,0.9511761,2208.9,2208.6,0.00678533]
[1741455061977,3.2078,2209.0,2208.6,0.00678533]
[1741455063174,3.2078,2208.7,2208.6,0.00678533]
[1741455063374,5.6038,2208.7,2208.6,0.00678533]
[1741455063574,9.6038,2208.7,2208.5,0.63213006]
[1741455063775,2.5833,2208.6,2208.1,0.72478]
[1741455064270,3.2078,2208.4,2207.7,4.4283]
[1741455064467,2.5833,2208.6,2207.7,4.4283]
[1741455064685,0.00678533,2208.3,2208.2,0.72477]
[1741455064981,0.00678533,2208.3,2208.1,0.7248]
[1741455065677,0.00678533,2208.3,2208.2,0.72477]
[1741455066275,1.2729,2209.2,2208.2,4.0]
[1741455066478,2.396,2210.0,2209.4,0.72435]
[1741455066678,2.396,2210.0,2209.2,3.2078]
[1741455066878,3.2078,2209.9,2209.5,1.9528]
[1741455067080,2.396,2210.0,2209.5,1.9528]
[1741455067481,2.396,2210.0,2209.5,1.95958533]
[1741455068282,2.396,2210.0,2209.5,2.68389533]
[1741455068978,3.2078,2210.1,2209.6,3.2078]
[1741455069285,2.396,2210.2,2209.6,3.2078]
[1741455069580,2.396,2210.2,2209.9,0.72421]
[1741455069986,2.396,2210.2,2209.9,3.2078]
[1741455070182,2.396,2210.3,2210.2,0.72409]
[1741455070482,2.396,2210.3,2209.9,3.2078]
[1741455070786,2.396,2210.3,2210.1,0.72413]
[1741455071176,3.2078,2210.4,2210.3,0.72408]
[1741455071489,3.2078,2210.4,2209.9,3.2078]
[1741455071490,2.396,2210.6,2209.9,3.2078]
[1741455071681,5.6038,2210.7,2210.2,3.2078]
[1741455072280,5.6038,2210.7,2210.4,0.72404]
[1741455072775,2.396,2210.8,2210.2,3.2078]
[1741455072986,3.2078,2210.7,2210.2,3.2078]
[1741455073489,3.2078,2210.7,2210.4,0.72403]
[1741455074386,3.2078,2210.7,2210.5,0.72401]
[1741455074992,3.2078,2210.7,2210.6,0.72398]
[1741455075486,2.396,2210.8,2210.6,0.72398]
[1741455075883,4.904,2211.0,2210.2,3.2078]
[1741455076083,3.2078,2211.7,2210.8,3.2078]
[1741455076288,3.2078,2212.0,2211.5,3.2078]
[1741455076484,3.2078,2212.0,2211.8,0.72359]
[1741455076882,3.2078,2212.0,2211.9,0.72356]
[1741455077084,5.5324,2212.4,2211.8,3.2078]
[1741455077085,1.2742,2212.4,2211.8,3.2078]
[1741455077278,1.2742,2212.4,2211.6,1.80915]
[1741455077279,2.395,2212.5,2212.2,3.2078]
[1741455077480,4.904,2212.8,2212.2,3.2078]
[1741455077481,2.395,2212.7,2212.2,3.2078]
[1741455077686,2.395,2212.7,2211.7,1.233]